[Event "15th Paderborner Schachtuerken-Cup 2018"]
[Site "Paderborn"]
[Date "2018.12.28"]
[Round "4"]
[White "Kruse, Janik"]
[Black "Zimmermann, Klemens"]
[Result "1-0"]
[ECO "E81"]
[WhiteElo "2127"]
[BlackElo "2282"]
[Annotator "NA"]
[PlyCount "36"]
[EventDate "2018.12.27"]
[EventType "swiss"]
[EventCountry "GER"]
[SourceTitle "playchess.com"]
[Source "ChessBase"]
[SourceQuality "1"]
[TimeControl "40/5400+30:900+30"]

1. d4 {[%emt 0:00:00]} Nf6 {[%emt 0:00:00]} 2. c4 {[%emt 0:00:05]} g6 {[%emt 0:00:00]} 3. Nc3 {[%emt 0:01:32]} Bg7 {[%emt 0:00:00]} 4. e4 {[%emt 0:00:13]} d6 {[%emt 0:00:00]} 5. f3 {[%emt 0:00:06]} O-O {[%emt 0:00:00]} 6. Be3 {[%emt 0:00:04]} a6 {[%emt 0:02:52]} 7. Nge2 {[%emt 0:04:30]} Nbd7 {[%emt 0:01:25]} 8. Qd2 {[%emt 0:08:21]} c6 {[%emt 0:00:27]} 9. g4 {[%emt 0:06:24]} b5 {[%emt 0:02:24]} 10. g5 {[%emt 0:01:17]} Ne8 {[%emt 0:03:45]} 11. Ng3 {[%emt 0:02:36]} bxc4 {[%emt 0:05:15]} 12. h4 {[%emt 0:05:08]} e5 {[%emt 0:08:34]} 13. d5 {[%emt 0:03:35]} c5 {[%emt 0:02:00]} 14. h5 {[%emt 0:07:58]} Rb8 {[%emt 0:02:26]} 15. Qh2 {[%emt 0:02:00]} Nc7 {[%emt 0:04:22]} 16. hxg6 {[%emt 0:07:57]} fxg6 {[%emt 0:00:24]} 17. Qxh7+ {[%emt 0:00:06]} Kf7 {[%emt 0:00:06]} 18. Rh6 {[%emt 0:00:25]} Ke8 {[%emt 0:17:27]} 1-0

[Event "15th Paderborner Schachtuerken-Cup 2018"]
[Site "Paderborn"]
[Date "2018.12.28"]
[Round "4"]
[White "Heinemann, Ernst"]
[Black "Wagner, Alexej"]
[Result "1/2-1/2"]
[ECO "B51"]
[WhiteElo "2072"]
[BlackElo "2298"]
[Annotator "NA"]
[PlyCount "67"]
[EventDate "2018.12.27"]
[EventType "swiss"]
[EventCountry "GER"]
[SourceTitle "playchess.com"]
[Source "ChessBase"]
[SourceQuality "1"]
[TimeControl "40/5400+30:900+30"]

1. e4 {[%emt 0:00:00]} c5 {[%emt 0:00:00]} 2. Nf3 {[%emt 0:00:00]} d6 {[%emt 0:00:00]} 3. Bb5+ {[%emt 0:00:11]} Nd7 {[%emt 0:00:00]} 4. d4 {[%emt 0:00:42]} cxd4 {[%emt 0:00:10]} 5. Qxd4 {[%emt 0:01:52]} Ngf6 {[%emt 0:00:14]} 6. O-O {[%emt 0:00:36]} a6 {[%emt 0:01:57]} 7. Bxd7+ {[%emt 0:00:18]} Bxd7 {[%emt 0:00:26]} 8. c4 {[%emt 0:00:06]} e6 {[%emt 0:00:40]} 9. Nc3 {[%emt 0:00:25]} Be7 {[%emt 0:00:39]} 10. b3 {[%emt 0:03:08]} O-O {[%emt 0:04:36]} 11. Bb2 {[%emt 0:00:39]} Qc7 {[%emt 0:01:19]} 12. Rfe1 {[%emt 0:04:01]} Rfd8 {[%emt 0:01:31]} 13. Qd2 {[%emt 0:13:25]} b6 {[%emt 0:00:31]} 14. Rac1 {[%emt 0:04:12]} Qb7 {[%emt 0:00:19]} 15. Nd4 {[%emt 0:05:27]} b5 {[%emt 0:01:55]} 16. cxb5 {[%emt 0:02:33]} axb5 {[%emt 0:00:06]} 17. b4 {[%emt 0:01:10]} Rac8 {[%emt 0:11:17]} 18. Qe2 {[%emt 0:04:00]} Rc4 {[%emt 0:08:47]} 19. Ndxb5 {[%emt 0:14:50]} Bxb5 {[%emt 0:03:07]} 20. Nxb5 {[%emt 0:00:34]} Rxe4 {[%emt 0:00:06]} 21. Qd3 {[%emt 0:03:29]} Rxb4 {[%emt 0:03:04]} 22. Bxf6 {[%emt 0:03:29]} Bxf6 {[%emt 0:00:19]} 23. a4 {[%emt 0:00:50]} Rxa4 {[%emt 0:02:16]} 24. Nxd6 {[%emt 0:00:52]} Qa8 {[%emt 0:16:03]} 25. Qg3 {[%emt 0:03:52]} Ra2 {[%emt 0:10:51]} 26. Rcd1 {[%emt 0:08:13]} Qa4 {[%emt 0:03:11]} 27. Qf3 {[%emt 0:02:51]} h6 {[%emt 0:04:13]} 28. h3 {[%emt 0:03:53]} Qb4 {[%emt 0:07:06]} 29. Qc6 {[%emt 0:06:30]} Bd4 {[%emt 0:05:22]} 30. Nxf7 {[%emt 0:00:59]} Rxf2 {[%emt 0:11:12]} 31. Nxd8 {[%emt 0:00:39]} Re2+ {[%emt 0:00:29]} 32. Kf1 {[%emt 0:01:18]} Rf2+ {[%emt 0:00:19]} 33. Kg1 {[%emt 0:00:05]} Re2+ {[%emt 0:01:40]} 34. Kf1 {[%emt 0:00:06]} 1/2-1/2

[Event "15th Paderborner Schachtuerken-Cup 2018"]
[Site "Paderborn"]
[Date "2018.12.29"]
[Round "5"]
[White "Gutman, Lev"]
[Black "Gulatz, Maurice"]
[Result "1/2-1/2"]
[ECO "A14"]
[WhiteElo "2422"]
[BlackElo "2140"]
[Annotator "NA"]
[PlyCount "90"]
[EventDate "2018.12.27"]
[EventType "swiss"]
[EventCountry "GER"]
[SourceTitle "playchess.com"]
[Source "ChessBase"]
[SourceQuality "1"]
[TimeControl "40/5400+30:900+30"]

1. Nf3 {[%emt 0:00:00]} Nf6 {[%emt 0:00:00]} 2. g3 {[%emt 0:00:00]} d5 {[%emt 0:00:16]} 3. Bg2 {[%emt 0:00:00]} e6 {[%emt 0:00:17]} 4. O-O {[%emt 0:00:00]} Be7 {[%emt 0:00:11]} 5. b3 {[%emt 0:01:17]} O-O {[%emt 0:01:02]} 6. Bb2 {[%emt 0:00:09]} c5 {[%emt 0:00:28]} 7. e3 {[%emt 0:00:07]} Nc6 {[%emt 0:00:51]} 8. c4 {[%emt 0:04:12]} d4 {[%emt 0:01:56]} 9. exd4 {[%emt 0:00:30]} cxd4 {[%emt 0:00:07]} 10. Re1 {[%emt 0:00:09] LiveBook: 478 Games} Ne8 {[%emt 0:02:01]} 11. a3 {[%emt 0:06:34]} a5 {[%emt 0:03:28]} 12. Ne5 {[%emt 0:01:47] A14: English Opening: 1...e6 with b3 by White} Nxe5 {[%emt 0:01:50]} 13. Rxe5 {[%emt 0:00:02]} f6 {[%emt 0:00:30]} 14. Re1 {[%emt 0:00:08]} e5 {[%emt 0:00:46]} 15. d3 {[%emt 0:00:06]} Nc7 {[%emt 0:01:57]} 16. Nd2 {[%emt 0:03:22]} (16. Bc1 Kh8 17. f4 exf4 18. Bxf4 Ne6 {½-½ (33) Cornette,M (2451)-Gharamian,T (2669) Vandoeuvre 2014}) 16... Rb8 {[%emt 0:08:53]} 17. f4 {[%emt 0:16:25]} exf4 {[%emt 0:15:52]} 18. gxf4 {[%emt 0:03:49]} b5 {[%emt 0:20:36]} 19. Rc1 $146 {[%emt 0:14:51]} ({Predecessor:} 19. Qe2 Bc5 {½-½ (34) Boyd,S (2458)-Lacoste,A (2273) ICCF email 2004}) 19... Bf5 {[%emt 0:08:07]} 20. Qf3 {[%emt 0:13:44]} ({White should play} 20. c5 $14) 20... Kh8 {[%emt 0:06:22]} 21. Bh3 {[%emt 0:11:44]} Bxh3 {[%emt 0:05:57]} 22. Qxh3 {[%emt 0:00:01]} f5 {[%emt 0:00:42]} (22... Bd6 $17 23. Qf5 bxc4 24. dxc4 (24. Rxc4 Rb5 $17) 24... Na6) 23. Nf3 {[%emt 0:02:02]} bxc4 {[%emt 0:01:52]} 24. Ne5 {[%emt 0:00:22]} Rf6 {[%emt 0:00:47]} 25. dxc4 {[%emt 0:03:30]} Bc5 {[%emt 0:01:16]} 26. Kh1 {[%emt 0:03:28]} Qc8 {[%emt 0:01:29]} 27. Rcd1 {[%emt 0:06:42]} Ne6 {[%emt 0:04:33]} 28. Qf3 {[%emt 0:00:06]} Qb7 {[%emt 0:01:43]} 29. Qxb7 {[%emt 0:00:20]} Rxb7 {[%emt 0:00:05]} 30. Nd3 {[%emt 0:00:46]} Bf8 {[%emt 0:02:31]} 31. b4 {[%emt 0:02:14]} axb4 {[%emt 0:01:50]} 32. axb4 {[%emt 0:00:05]} Bxb4 {[%emt 0:00:46]} 33. Nxb4 {[%emt 0:00:12]} Rxb4 {[%emt 0:00:17]} 34. Bxd4 {[%emt 0:00:01]} Rg6 {[%emt 0:01:54]} 35. Rb1 {[%emt 0:04:44]} Rxb1 {[%emt 0:01:02]} 36. Rxb1 {[%emt 0:00:00]} h6 {[%emt 0:00:57]} 37. Be3 {[%emt 0:02:52]} Rg4 {[%emt 0:01:26]} 38. c5 {[%emt 0:00:27]} Nxf4 $11 {[%emt 0:01:51]} 39. c6 {[%emt 0:00:55]} Nd5 {[%emt 0:00:29]} 40. Rc1 {[%emt 0:00:43]} Re4 {[%emt 0:01:15]} 41. Bf2 {[%emt 0:16:01]} Nc7 {[%emt 0:15:49]} 42. Rc5 {[%emt 0:00:42]} g6 {[%emt 0:00:36]} 43. Re5 {[%emt 0:00:31]} Rc4 {[%emt 0:00:00]} 44. Be3 {[%emt 0:00:00]} Rxc6 {[%emt 0:00:00]} 45. Bxh6 {[%emt 0:00:00]} Ne6 {[%emt 0:00:00]} 1/2-1/2

[Event "15th Paderborner Schachtuerken-Cup 2018"]
[Site "Paderborn"]
[Date "2018.12.29"]
[Round "5"]
[White "Ackermann, Hans Werner"]
[Black "Skembris, Spyridon"]
[Result "0-1"]
[ECO "A27"]
[WhiteElo "2275"]
[BlackElo "2384"]
[Annotator "NA"]
[PlyCount "76"]
[EventDate "2018.12.27"]
[EventType "swiss"]
[EventCountry "GER"]
[SourceTitle "playchess.com"]
[Source "ChessBase"]
[SourceQuality "1"]
[TimeControl "40/5400+30:900+30"]

1. Nf3 {[%emt 0:00:00]} g6 {[%emt 0:00:29]} 2. c4 {[%emt 0:01:10]} Bg7 {[%emt 0:00:16]} 3. Nc3 {[%emt 0:00:04]} e5 {[%emt 0:00:17]} 4. d4 {[%emt 0:04:33]} exd4 {[%emt 0:00:41]} 5. Nxd4 {[%emt 0:00:03]} Nc6 {[%emt 0:00:30]} 6. Nc2 $11 {[%emt 0:01:11] LiveBook: 31 Games} d6 {[%emt 0:04:13]} 7. e3 {[%emt 0:19:25]} Nf6 {[%emt 0:02:05]} 8. Be2 {[%emt 0:00:38]} O-O {[%emt 0:00:22]} 9. O-O {[%emt 0:00:26]} Re8 {[%emt 0:00:14]} 10. a4 {[%emt 0:06:36]} a5 {[%emt 0:04:45]} 11. Nb5 {[%emt 0:03:17]} Ne4 {[%emt 0:11:33]} 12. f3 {[%emt 0:08:10]} Nc5 {[%emt 0:01:15]} 13. Ra3 {[%emt 0:00:39]} Nb4 {[%emt 0:04:20]} 14. Ncd4 {[%emt 0:07:32]} c6 {[%emt 0:03:13]} 15. Nc3 {[%emt 0:01:07]} f5 {[%emt 0:09:13]} 16. Nc2 {[%emt 0:04:36]} Be6 {[%emt 0:01:30]} 17. Kh1 {[%emt 0:07:29]} Bf7 {[%emt 0:03:09]} 18. Qd2 {[%emt 0:08:35]} Qe7 {[%emt 0:03:02]} 19. Nd1 {[%emt 0:01:38]} Nca6 {[%emt 0:11:23]} 20. Nf2 {[%emt 0:09:24]} Nxc2 {[%emt 0:06:15]} 21. Qxc2 {[%emt 0:00:08]} Nb4 {[%emt 0:00:30]} 22. Qb1 {[%emt 0:03:30]} d5 {[%emt 0:00:27]} 23. cxd5 {[%emt 0:02:43]} Bxd5 {[%emt 0:00:34]} 24. Nd1 {[%emt 0:05:18]} Qf7 {[%emt 0:04:22]} 25. b3 {[%emt 0:01:04]} Rad8 {[%emt 0:03:04]} 26. Nb2 {[%emt 0:01:52]} Kh8 {[%emt 0:07:46]} 27. Nc4 {[%emt 0:00:06]} Qc7 {[%emt 0:00:54]} 28. h3 {[%emt 0:00:53]} Qg3 {[%emt 0:03:54]} 29. Bb2 {[%emt 0:00:58]} Bxc4 {[%emt 0:00:14]} 30. Bxg7+ {[%emt 0:00:20]} Kxg7 {[%emt 0:00:09]} 31. Qb2+ {[%emt 0:00:29]} Qe5 {[%emt 0:00:14]} 32. Qxe5+ {[%emt 0:00:18]} Rxe5 {[%emt 0:00:08]} 33. bxc4 {[%emt 0:01:07]} Rd2 {[%emt 0:00:13]} 34. Rf2 {[%emt 0:00:49]} Rb2 {[%emt 0:01:38]} 35. Kh2 {[%emt 0:00:33]} f4 {[%emt 0:00:42]} 36. e4 {[%emt 0:00:12]} Re7 {[%emt 0:00:31]} 37. Rc3 {[%emt 0:00:36]} Rd7 {[%emt 0:00:19]} 38. Kg1 {[%emt 0:00:39]} Rdd2 {[%emt 0:00:12]} 0-1

[Event "15th Paderborner Schachtuerken-Cup 2018"]
[Site "Paderborn"]
[Date "2018.12.29"]
[Round "5"]
[White "Meessen, Max"]
[Black "Steinle, Carsten"]
[Result "1/2-1/2"]
[ECO "A54"]
[WhiteElo "2208"]
[BlackElo "2154"]
[Annotator "NA"]
[PlyCount "187"]
[EventDate "2018.12.27"]
[EventType "swiss"]
[EventCountry "GER"]
[SourceTitle "playchess.com"]
[Source "ChessBase"]
[SourceQuality "1"]
[TimeControl "40/5400+30:900+30"]

1. d4 {[%emt 0:00:00]} Nf6 {[%emt 0:00:23]} 2. c4 {[%emt 0:00:00]} d6 {[%emt 0:00:10]} 3. Nc3 {[%emt 0:00:07]} Nbd7 {[%emt 0:00:15]} 4. Nf3 {[%emt 0:01:30]} e5 {[%emt 0:00:24]} 5. Bg5 {[%emt 0:00:13]} Be7 {[%emt 0:00:45]} 6. e3 {[%emt 0:00:21]} O-O {[%emt 0:01:30]} 7. Qc2 {[%emt 0:00:14]} Re8 {[%emt 0:01:39]} 8. O-O-O {[%emt 0:00:30]} exd4 {[%emt 0:07:41]} 9. exd4 {[%emt 0:01:46]} c6 {[%emt 0:00:12]} 10. Bd3 {[%emt 0:00:54]} a6 {[%emt 0:02:27]} 11. Rhe1 {[%emt 0:02:34]} b5 {[%emt 0:05:41]} 12. c5 {[%emt 0:00:53]} h6 {[%emt 0:07:07]} 13. Bh4 {[%emt 0:04:37]} d5 {[%emt 0:16:35]} 14. h3 {[%emt 0:06:54]} a5 {[%emt 0:04:30]} 15. g4 {[%emt 0:05:59]} b4 {[%emt 0:00:42]} 16. Na4 {[%emt 0:01:55]} Ba6 {[%emt 0:01:31]} 17. Bf5 {[%emt 0:09:32]} Bb5 {[%emt 0:01:04]} 18. Re3 {[%emt 0:09:04]} Qc7 {[%emt 0:26:37]} 19. Bxd7 {[%emt 0:07:01]} Qxd7 {[%emt 0:03:49]} 20. Nb6 {[%emt 0:00:10]} Qc7 {[%emt 0:01:16]} 21. Nxa8 {[%emt 0:07:41]} Rxa8 {[%emt 0:00:08]} 22. Rde1 {[%emt 0:01:11]} Ne4 {[%emt 0:01:35]} 23. Bxe7 {[%emt 0:00:44]} Qxe7 {[%emt 0:00:11]} 24. Nd2 {[%emt 0:00:50]} Qg5 {[%emt 0:07:05]} 25. Nxe4 {[%emt 0:01:38]} dxe4 {[%emt 0:00:07]} 26. Qxe4 {[%emt 0:00:40]} a4 {[%emt 0:00:06]} 27. Qf5 {[%emt 0:02:50]} Qd8 {[%emt 0:01:25]} 28. Re7 {[%emt 0:03:24]} Bc4 {[%emt 0:00:16]} 29. Qd7 {[%emt 0:02:28]} Qxd7 {[%emt 0:00:54]} 30. Rxd7 {[%emt 0:00:01]} Bxa2 {[%emt 0:00:08]} 31. Ree7 {[%emt 0:02:04]} Be6 {[%emt 0:01:43]} 32. Ra7 {[%emt 0:01:56]} Rd8 {[%emt 0:00:07]} 33. Rxa4 {[%emt 0:01:04]} Rxd4 {[%emt 0:00:09]} 34. Raa7 {[%emt 0:07:44]} Bb3 {[%emt 0:01:32]} 35. Re1 {[%emt 0:08:09]} Rc4+ {[%emt 0:01:07]} 36. Kd2 {[%emt 0:01:20]} Rc2+ {[%emt 0:01:57]} 37. Ke3 {[%emt 0:00:18]} Rxc5 {[%emt 0:00:25]} 38. f4 {[%emt 0:01:30]} g6 {[%emt 0:00:32]} 39. Rb7 {[%emt 0:01:58]} Rc4 {[%emt 0:00:09]} 40. Rf1 {[%emt 0:00:40]} c5 {[%emt 0:02:54]} 41. Rc7 {[%emt 0:19:59]} Rc2 {[%emt 0:17:01]} 42. Rf2 {[%emt 0:01:15]} Rc1 {[%emt 0:00:22]} 43. g5 {[%emt 0:00:00]} Be6 {[%emt 0:00:00]} 44. Rd2 {[%emt 0:00:00]} hxg5 {[%emt 0:00:00]} 45. fxg5 {[%emt 0:00:00]} Bxh3 {[%emt 0:00:00]} 46. Rd5 {[%emt 0:00:00]} c4 {[%emt 0:00:00]} 47. Rb7 {[%emt 0:00:00]} Kg7 {[%emt 0:00:44]} 48. Rb8 {[%emt 0:00:00]} Rg1 {[%emt 0:00:26]} 49. Rxb4 {[%emt 0:00:50]} Be6 {[%emt 0:00:10]} 50. Rc5 {[%emt 0:03:12]} Rg4 {[%emt 0:00:43]} 51. Rb7 {[%emt 0:00:35]} Rg3+ {[%emt 0:00:32]} 52. Kf4 {[%emt 0:00:30]} Rg4+ {[%emt 0:00:08]} 53. Kf3 {[%emt 0:00:15]} Rd4 {[%emt 0:00:23]} 54. Rb8 {[%emt 0:01:30]} Rd3+ {[%emt 0:00:05]} 55. Kf4 {[%emt 0:00:40]} Rd4+ {[%emt 0:00:14]} 56. Kf3 {[%emt 0:00:41]} Bf5 {[%emt 0:00:53]} 57. Rc7 {[%emt 0:01:04]} Be6 {[%emt 0:01:13]} 58. Ke3 {[%emt 0:00:24]} Rg4 {[%emt 0:01:00]} 59. Rb5 {[%emt 0:00:07]} Rg3+ {[%emt 0:00:24]} 60. Kd4 {[%emt 0:00:30]} Rg2 {[%emt 0:01:50]} 61. Re5 {[%emt 0:00:21]} Kf8 {[%emt 0:00:45]} 62. Rb5 {[%emt 0:00:39]} Rg4+ {[%emt 0:00:09]} 63. Kc3 {[%emt 0:00:09]} Rg3+ {[%emt 0:00:09]} 64. Kb4 {[%emt 0:00:15]} Rg4 {[%emt 0:00:06]} 65. Rb8+ {[%emt 0:00:29]} Kg7 {[%emt 0:00:03]} 66. Rc5 {[%emt 0:00:14]} Rg3 {[%emt 0:00:11]} 67. Rb6 {[%emt 0:00:38]} Rb3+ {[%emt 0:00:20]} 68. Ka5 {[%emt 0:00:01]} Rg3 {[%emt 0:00:21]} 69. Ka6 {[%emt 0:00:24]} Rd3 {[%emt 0:01:07]} 70. Rc7 {[%emt 0:00:38]} Re3 {[%emt 0:00:17]} 71. Ka5 {[%emt 0:01:25]} Kf8 {[%emt 0:00:28]} 72. Rb8+ {[%emt 0:00:41]} Kg7 {[%emt 0:00:02]} 73. Re7 {[%emt 0:00:22]} Re5+ {[%emt 0:00:22]} 74. Rb5 {[%emt 0:00:05]} Re3 {[%emt 0:00:33]} 75. Rc7 {[%emt 0:01:06]} Rg3 {[%emt 0:00:14]} 76. Kb4 {[%emt 0:00:42]} Rg4 {[%emt 0:00:34]} 77. Rbc5 {[%emt 0:00:17]} Kf8 {[%emt 0:00:18]} 78. Kc3 {[%emt 0:00:31]} Rg3+ {[%emt 0:00:11]} 79. Kd2 {[%emt 0:01:00]} Rb3 {[%emt 0:00:13]} 80. Kc2 {[%emt 0:00:17]} Rg3 {[%emt 0:00:35]} 81. Kd2 {[%emt 0:00:24]} Rb3 {[%emt 0:02:08]} 82. Kc2 {[%emt 0:00:19]} Rf3 {[%emt 0:00:36]} 83. Rxc4 {[%emt 0:00:56]} Bxc4 {[%emt 0:00:21]} 84. Rxc4 {[%emt 0:00:00]} Rf5 {[%emt 0:00:16]} 85. Rg4 {[%emt 0:00:05]} Ke7 {[%emt 0:00:04]} 86. Kd3 {[%emt 0:00:27]} Rb5 {[%emt 0:00:59]} 87. b4 {[%emt 0:00:06]} Kd6 {[%emt 0:00:28]} 88. Kc4 {[%emt 0:00:39]} Rf5 {[%emt 0:00:12]} 89. Rd4+ {[%emt 0:01:36]} Kc6 {[%emt 0:00:34]} 90. Rg4 {[%emt 0:00:01]} Kb6 {[%emt 0:00:20]} 91. Kd4 {[%emt 0:00:34]} Kb5 {[%emt 0:00:10]} 92. Ke3 {[%emt 0:00:09]} Ka4 {[%emt 0:00:51]} 93. Rf4 {[%emt 0:00:48]} Rxg5 {[%emt 0:00:17]} 94. Ke4 {[%emt 0:00:21]} 1/2-1/2

[Event "15th Paderborner Schachtuerken-Cup 2018"]
[Site "Paderborn"]
[Date "2018.12.29"]
[Round "5"]
[White "Boehm, Juergen"]
[Black "Bock, Juergen"]
[Result "0-1"]
[ECO "D06"]
[WhiteElo "2201"]
[BlackElo "2269"]
[Annotator "NA"]
[PlyCount "49"]
[EventDate "2018.12.27"]
[EventType "swiss"]
[EventCountry "GER"]
[SourceTitle "playchess.com"]
[Source "ChessBase"]
[SourceQuality "1"]
[TimeControl "40/5400+30:900+30"]

1. d4 {[%emt 0:05:49]} d5 {[%emt 0:00:03]} 2. c4 {[%emt 0:00:04]} Bf5 {[%emt 0:00:47]} 3. cxd5 {[%emt 0:05:10]} Bxb1 {[%emt 0:00:13]} 4. Qa4+ {[%emt 0:07:21]} c6 {[%emt 0:00:08]} 5. Rxb1 {[%emt 0:00:19]} Qxd5 {[%emt 0:00:21]} 6. Nf3 {[%emt 0:00:30]} Nd7 {[%emt 0:00:40]} 7. b4 {[%emt 0:01:41]} e5 {[%emt 0:02:30]} 8. dxe5 {[%emt 0:26:45]} Nxe5 {[%emt 0:00:56]} 9. Nxe5 {[%emt 0:00:36]} Qxe5 {[%emt 0:00:08]} 10. Qc2 {[%emt 0:00:47]} Nf6 {[%emt 0:10:09]} 11. e3 {[%emt 0:06:54]} a5 {[%emt 0:04:05]} 12. a3 {[%emt 0:19:52]} axb4 {[%emt 0:02:40]} 13. axb4 {[%emt 0:00:02]} Nd5 {[%emt 0:06:49]} 14. Bd2 {[%emt 0:00:19]} Ra1 {[%emt 0:04:07]} 15. b5 {[%emt 0:08:21]} Bb4 {[%emt 0:08:25]} 16. Bxb4 {[%emt 0:00:39]} Nxb4 {[%emt 0:00:29]} 17. Qb3 {[%emt 0:02:05]} Rxb1+ {[%emt 0:02:15]} 18. Qxb1 {[%emt 0:00:01]} Qc3+ {[%emt 0:00:10]} 19. Ke2 {[%emt 0:00:24]} O-O {[%emt 0:03:24]} 20. Qe1 {[%emt 0:02:56]} Qc5 {[%emt 0:09:44]} 21. Kf3 {[%emt 0:01:52]} Re8 {[%emt 0:13:23]} 22. Be2 {[%emt 0:01:01]} Nd5 {[%emt 0:07:25]} 23. Qd2 {[%emt 0:07:17]} Nc3 {[%emt 0:06:57]} 24. h4 {[%emt 0:00:43]} Qf5+ {[%emt 0:00:14]} 25. Kg3 {[%emt 0:00:02]} 0-1

[Event "15th Paderborner Schachtuerken-Cup 2018"]
[Site "Paderborn"]
[Date "2018.12.29"]
[Round "6"]
[White "Levin, Felix"]
[Black "Skembris, Spyridon"]
[Result "1/2-1/2"]
[ECO "D56"]
[WhiteElo "2482"]
[BlackElo "2384"]
[Annotator "ChessBase"]
[PlyCount "40"]
[EventDate "2018.12.27"]
[EventType "swiss"]
[EventCountry "GER"]
[SourceTitle "playchess.com"]
[Source "ChessBase"]
[SourceQuality "1"]
[TimeControl "40/5400+30:900+30"]

1. d4 {[%emt 0:00:00]} Nf6 {[%emt 0:00:06]} 2. c4 {[%emt 0:00:00]} e6 {[%emt 0:00:08]} 3. Nf3 {[%emt 0:00:07]} d5 {[%emt 0:00:21]} 4. Nc3 {[%emt 0:00:48]} Be7 {[%emt 0:00:31]} 5. Bg5 {[%emt 0:00:23]} h6 {[%emt 0:00:12]} 6. Bh4 {[%emt 0:00:08]} O-O {[%emt 0:00:19]} 7. e3 {[%emt 0:00:15]} Ne4 {[%emt 0:00:30]} 8. Bxe7 {[%emt 0:00:12]} Qxe7 {[%emt 0:00:07]} 9. Rc1 {[%emt 0:00:12]} c6 {[%emt 0:00:28]} 10. Bd3 {[%emt 0:00:13]} Nxc3 {[%emt 0:00:15]} 11. Rxc3 {[%emt 0:00:08]} Nd7 {[%emt 0:00:10]} 12. O-O {[%emt 0:00:24]} e5 {[%emt 0:00:20]} 13. Nxe5 {[%emt 0:00:49]} Nxe5 {[%emt 0:00:11]} 14. dxe5 {[%emt 0:00:05]} dxc4 {[%emt 0:00:10]} 15. Rxc4 {[%emt 0:01:06]} Qxe5 {[%emt 0:00:08]} 16. Qc2 {[%emt 0:00:23]} Be6 {[%emt 0:00:42]} 17. Rc5 {[%emt 0:00:39]} Qd6 {[%emt 0:00:18]} 18. b4 {[%emt 0:00:06]} Rfe8 {[%emt 0:00:02]} 19. Be4 Red8 20. a3 {[%emt 0:00:10]} Qd2 1/2-1/2

[Event "15th Paderborner Schachtuerken-Cup 2018"]
[Site "Paderborn"]
[Date "2018.12.29"]
[Round "6"]
[White "Bock, Juergen"]
[Black "Kruse, Janik"]
[Result "1/2-1/2"]
[ECO "D14"]
[WhiteElo "2269"]
[BlackElo "2127"]
[Annotator "NA"]
[PlyCount "40"]
[EventDate "2018.12.27"]
[EventType "swiss"]
[EventCountry "GER"]
[SourceTitle "playchess.com"]
[Source "ChessBase"]
[SourceQuality "1"]
[TimeControl "40/5400+30:900+30"]

1. d4 {[%emt 0:00:00]} d5 {[%emt 0:00:00]} 2. c4 {[%emt 0:00:12]} c6 {[%emt 0:00:00]} 3. cxd5 {[%emt 0:00:50]} cxd5 {[%emt 0:00:00]} 4. Bf4 {[%emt 0:00:33]} Nf6 {[%emt 0:01:30]} 5. Nc3 {[%emt 0:01:18]} Nc6 {[%emt 0:00:20]} 6. e3 {[%emt 0:00:39]} Bf5 {[%emt 0:02:53]} 7. Nf3 {[%emt 0:01:38]} e6 {[%emt 0:03:44]} 8. Bb5 {[%emt 0:08:00]} Be7 {[%emt 0:05:55]} 9. O-O {[%emt 0:01:36]} O-O {[%emt 0:01:14]} 10. Bxc6 {[%emt 0:04:37]} bxc6 {[%emt 0:00:12]} 11. Na4 {[%emt 0:00:38]} Nd7 {[%emt 0:08:41]} 12. Ne5 {[%emt 0:08:13]} Nxe5 {[%emt 0:01:21]} 13. Bxe5 {[%emt 0:00:14]} Rc8 {[%emt 0:02:39]} 14. Rc1 {[%emt 0:00:29]} Qa5 {[%emt 0:00:22]} 15. a3 {[%emt 0:15:57]} f6 {[%emt 0:04:50]} 16. Bg3 {[%emt 0:09:45]} Qb5 {[%emt 0:04:56]} 17. Rc3 {[%emt 0:20:22]} c5 {[%emt 0:12:26]} 18. Nxc5 {[%emt 0:04:01]} Bxc5 {[%emt 0:00:08]} 19. dxc5 {[%emt 0:01:11]} Rxc5 {[%emt 0:00:32]} 20. Qd2 {[%emt 0:03:04]} Rfc8 {[%emt 0:03:15]} 1/2-1/2

[Event "15th Paderborner Schachtuerken-Cup 2018"]
[Site "Paderborn"]
[Date "2018.12.29"]
[Round "6"]
[White "Gulatz, Maurice"]
[Black "Vogel, Constantin"]
[Result "1/2-1/2"]
[ECO "A60"]
[WhiteElo "2140"]
[BlackElo "2068"]
[Annotator "NA"]
[PlyCount "43"]
[EventDate "2018.12.27"]
[EventType "swiss"]
[EventCountry "GER"]
[SourceTitle "playchess.com"]
[Source "ChessBase"]
[SourceQuality "1"]
[TimeControl "40/5400+30:900+30"]

1. d4 {[%emt 0:00:00]} Nf6 {[%emt 0:00:00]} 2. c4 {[%emt 0:00:00]} e6 {[%emt 0:00:00]} 3. g3 {[%emt 0:00:02]} c5 {[%emt 0:00:27]} 4. d5 {[%emt 0:00:14]} exd5 {[%emt 0:00:25]} 5. cxd5 {[%emt 0:00:07]} b5 {[%emt 0:04:48]} 6. e4 {[%emt 0:07:08]} Nxe4 {[%emt 0:06:46]} 7. Qe2 {[%emt 0:00:26]} Qe7 {[%emt 0:01:16]} 8. Bg2 {[%emt 0:00:25]} Nd6 {[%emt 0:03:15]} 9. Be3 {[%emt 0:00:58]} Bb7 {[%emt 0:12:18]} 10. Bxc5 {[%emt 0:04:18]} Qxe2+ {[%emt 0:02:31]} 11. Nxe2 {[%emt 0:02:49]} Na6 {[%emt 0:00:13]} 12. Bxd6 {[%emt 0:11:27]} Bxd6 {[%emt 0:00:09]} 13. Nbc3 {[%emt 0:01:55]} b4 {[%emt 0:09:08]} 14. Nb5 {[%emt 0:10:51]} Bc5 {[%emt 0:06:24]} 15. O-O {[%emt 0:03:39]} O-O {[%emt 0:01:03]} 16. Nf4 {[%emt 0:03:10]} Rfc8 {[%emt 0:06:45]} 17. Rac1 {[%emt 0:04:13]} Bf8 {[%emt 0:05:50]} 18. Rfd1 {[%emt 0:12:47]} d6 {[%emt 0:06:11]} 19. Nd3 {[%emt 0:04:10]} g6 {[%emt 0:03:14]} 20. Nd4 {[%emt 0:06:29]} Bg7 {[%emt 0:10:43]} 21. Nc6 {[%emt 0:02:52]} Kf8 {[%emt 0:03:53]} 22. Na5 {[%emt 0:07:03]} 1/2-1/2